bitfinex/quotes_SOLUSD_20260224
["timestamp","ask_amount","ask_price","bid_price","bid_amount"]
[1771936898820,0.23315988,76.719,76.694,13.03876143]
[1771936899029,0.23315988,76.719,76.695,0.49122223]
[1771936899720,0.23315988,76.719,76.694,13.03876143]
[1771936899721,0.23315988,76.719,76.697,0.49122223]
[1771936900097,13.26775762,76.719,76.697,0.49122223]
[1771936900711,0.23315988,76.718,76.697,0.49122223]
[1771936901724,0.23315988,76.725,76.691,0.49122223]
[1771936901928,0.23315988,76.719,76.691,0.49122223]
[1771936902622,0.23315988,76.725,76.69,5.22453759]
[1771936902803,5.45769747,76.73,76.691,0.49122223]
[1771936903204,0.23315988,76.729,76.691,0.49122223]
[1771936903515,5.22453759,76.72,76.691,0.49122223]
[1771936903818,0.23315988,76.719,76.693,0.49122223]
[1771936904627,13.26774062,76.719,76.693,0.49122223]
[1771936904822,0.23315988,76.718,76.693,0.49122223]
[1771936905317,5.22453759,76.71,76.693,0.49122223]
[1771936905829,0.23315988,76.709,76.687,0.49122223]
[1771936906025,0.23315988,76.708,76.681,0.49122223]
[1771936907218,5.22453759,76.72,76.691,0.49122223]
[1771936908139,5.22453759,76.72,76.693,0.49122223]
[1771936908319,18.25910302,76.72,76.693,0.49122223]
[1771936909130,0.23315988,76.723,76.693,0.49122223]
[1771936909436,0.23315988,76.734,76.701,0.49122223]
[1771936909922,5.22453759,76.74,76.711,0.49122223]
[1771936910236,5.22453759,76.74,76.713,0.49122223]
[1771936910616,13.03118362,76.739,76.713,0.49122223]
[1771936911717,0.23315988,76.738,76.713,0.49122223]
[1771936912033,0.23315988,76.729,76.712,13.03577015]
[1771936912224,0.23315988,76.738,76.709,0.49122223]
[1771936915034,0.23315988,76.738,76.711,0.49122223]
[1771936917433,0.23315988,76.738,76.713,0.4510898]
[1771936920640,0.23315988,76.738,76.715,0.4510898]
[1771936921727,0.23315988,76.738,76.717,0.4510898]
[1771936921923,0.23315988,76.736,76.712,13.48670055]
[1771936922126,0.23315988,76.736,76.713,0.4510898]
[1771936923531,0.23315988,76.736,76.715,0.4510898]
[1771936926028,0.23315988,76.736,76.716,13.03509046]
[1771936926227,0.23315988,76.736,76.717,0.4510898]
[1771936926429,18.25568121,76.74,76.717,0.4510898]
[1771936926629,3.69383402,76.756,76.721,0.4510898]
[1771936928550,0.23315988,76.759,76.731,0.4510898]
[1771936928737,16.95378157,76.765,76.731,0.4510898]
[1771936929055,0.23315988,76.764,76.731,0.4510898]
[1771936930261,0.23315988,76.759,76.731,0.4510898]
[1771936931352,0.23315988,76.759,76.733,0.4510898]
[1771936931857,0.23315988,76.749,76.732,13.03237241]
[1771936933250,0.23315988,76.749,76.728,13.48414161]
[1771936933456,0.23315988,76.749,76.729,0.4510898]
[1771936935958,0.23315988,76.747,76.729,0.4510898]
[1771936936162,0.23315988,76.747,76.73,13.0327121]
[1771936938056,0.23315988,76.739,76.719,0.4510898]
[1771936939660,0.23315988,76.739,76.719,13.48557659]
[1771936939862,0.23315988,76.739,76.719,13.03448679]
[1771936940070,5.45769747,76.73,76.719,13.03448679]
[1771936940371,0.23315988,76.73,76.719,13.03448679]
[1771936944072,0.23315988,76.73,76.713,13.03560022]
[1771936944268,0.23315988,76.729,76.705,13.03695978]
[1771936944650,0.23315988,76.729,76.705,13.49613433]
[1771936944855,0.23315988,76.729,76.706,0.48538325]
[1771936945378,5.22453759,76.74,76.708,0.5]
[1771936945576,3.69383402,76.745,76.711,0.5]
[1771936945874,13.02965549,76.748,76.711,0.5]
[1771936948777,5.22453759,76.76,76.721,0.5]
[1771936950560,5.22453759,76.76,76.723,0.5]
[1771936950890,13.02778827,76.759,76.723,0.5]
[1771936953076,13.02778827,76.759,76.725,0.5]
[1771936955902,13.02778827,76.759,76.727,0.5]
[1771936956582,13.02778827,76.759,76.731,0.5]
[1771936958084,13.02778827,76.759,76.732,0.5]
[1771936959581,13.02778827,76.759,76.728,13.03304668]
[1771936959582,5.22345229,76.75,76.719,0.5]
[1771936960675,13.02948572,76.749,76.719,0.5]
[1771936961286,13.02948572,76.749,76.72,13.03441084]
[1771936963172,5.22345229,76.74,76.72,13.03441084]
[1771936964668,5.22345229,76.74,76.71,5.22345229]
[1771936964881,5.22345229,76.74,76.72,0.5]
[1771936967595,5.22345229,76.74,76.721,13.53424095]
[1771936968198,5.22345229,76.74,76.722,0.5]
[1771936969293,13.03028653,76.745,76.722,0.5]
[1771936970308,13.02948572,76.749,76.722,0.5]
[1771936971097,5.22345229,76.74,76.722,0.5]
[1771936978704,5.22345229,76.74,76.723,13.03390117]
[1771936978903,5.22345229,76.76,76.724,0.5]
[1771936979310,5.22345229,76.75,76.724,0.5]
[1771936979907,5.22345229,76.76,76.725,13.03356142]
[1771936980109,5.22345229,76.75,76.726,0.5]
[1771936980309,5.22345229,76.75,76.723,32.58475294]
[1771936980913,5.70964368,76.75,76.723,32.58475294]
[1771936981211,0.48619139,76.749,76.723,32.58475294]
[1771936982206,5.22345229,76.75,76.724,0.48487807]
[1771936982511,0.48619139,76.754,76.724,0.48487807]
[1771936983291,13.02845424,76.756,76.724,0.48487807]
[1771936983692,13.02845424,76.756,76.726,0.48487807]
[1771936983913,13.51464563,76.756,76.726,0.48487807]
[1771936984617,0.48619139,76.759,76.731,0.48487807]
[1771936984794,0.48619139,76.749,76.731,0.48487807]
[1771936985711,0.48619139,76.749,76.732,13.03237241]
[1771936986010,0.48619139,76.747,76.722,0.48487807]
[1771936986717,13.02965549,76.748,76.722,0.48487807]
[1771936987414,13.51584688,76.748,76.722,0.48487807]
[1771936987594,0.48619139,76.747,76.722,0.48487807]
[1771936987993,0.48619139,76.747,76.724,0.48487807]
[1771936988419,13.51615849,76.747,76.724,0.48487807]
[1771936988920,13.51615849,76.747,76.72,5.22345229]
[1771936988921,0.48619139,76.739,76.72,0.48487807]
[1771936991215,0.48619139,76.739,76.721,13.03424095]
[1771936991412,0.48619139,76.738,76.721,0.48487807]
[1771936992925,0.48619139,76.737,76.702,0.48487807]
[1771936993110,0.48619139,76.735,76.704,0.48487807]
[1771936994215,0.48619139,76.729,76.694,0.48487807]
[1771936994419,0.48619139,76.719,76.694,0.48487807]
[1771936995108,5.70964368,76.71,76.694,0.48487807]
[1771936996711,5.22345229,76.72,76.696,0.48487807]
[1771936997807,13.03458074,76.719,76.696,0.48487807]
[1771936998218,0.48619139,76.718,76.696,0.48487807]
[1771936998923,0.48619139,76.718,76.697,13.03831962]
[1771936999105,0.48619139,76.718,76.698,0.48487807]
[1771936999717,13.03458074,76.719,76.698,0.48487807]
[1771937000010,0.48619139,76.723,76.7,0.48487807]
[1771937000223,13.03344654,76.726,76.7,0.48487807]
[1771937000415,0.48619139,76.725,76.7,0.48487807]
[1771937001526,5.70964368,76.73,76.7,0.48487807]
[1771937001829,5.70964368,76.73,76.701,0.48487807]
[1771937002011,0.48619139,76.728,76.703,0.48487807]
[1771937003209,0.48619139,76.719,76.703,0.48487807]
[1771937003515,0.48619139,76.709,76.683,0.48487807]
[1771937004120,0.48619139,76.709,76.682,32.60198611]
[1771937004121,0.4877678,76.707,76.684,13.53264244]
[1771937004326,0.4877678,76.699,76.684,13.53264244]
[1771937008224,5.22345229,76.7,76.685,0.46649264]
[1771937009318,0.45563905,76.704,76.687,0.46649264]
[1771937009625,0.45563905,76.709,76.687,0.46649264]
[1771937011635,13.49208896,76.708,76.687,0.46649264]
[1771937012132,13.49208896,76.708,76.689,0.46649264]
[1771937013322,5.22345229,76.7,76.671,0.46649264]
[1771937013630,52.12657105,76.737,76.656,0.46649264]
[1771937013631,0.45563905,76.679,76.656,0.46649264]
[1771937014129,0.45563905,76.679,76.66,0.56649264]
[1771937014717,5.22345229,76.68,76.66,0.56649264]
[1771937015240,5.23383863,76.68,76.66,0.56649264]
[1771937016335,5.23383863,76.68,76.662,0.46649264]
[1771937017642,5.23383863,76.68,76.663,13.51059474]
[1771937017834,5.23383863,76.68,76.664,0.46649264]
[1771937021837,5.68947768,76.68,76.664,0.46649264]
[1771937023458,5.23383863,76.68,76.664,0.46649264]
[1771937023642,0.45563905,76.679,76.664,0.46649264]
[1771937027533,0.45563905,76.679,76.665,13.04376182]
[1771937027955,0.45563905,76.679,76.664,0.46649264]
[1771937029055,0.45563905,76.677,76.661,0.46649264]
[1771937029251,32.60077876,76.686,76.662,0.46649264]
[1771937029456,5.23383863,76.68,76.663,0.47781952]
[1771937030162,5.23383863,76.67,76.66,0.1]
[1771937030647,5.23383863,76.68,76.66,0.1]
[1771937031052,13.04138029,76.679,76.66,0.57781952]
[1771937031352,0.04436095,76.678,76.66,0.57781952]
[1771937031551,5.23383863,76.68,76.66,0.57781952]
[1771937031858,0.04436095,76.69,76.66,0.57781952]
[1771937031859,13.03969273,76.689,76.66,0.57781952]
[1771937033065,0.04436095,76.699,76.662,0.47781952]
[1771937033271,5.23383863,76.7,76.662,0.47781952]
[1771937034652,13.03800848,76.699,76.664,0.47781952]
[1771937034863,5.27819958,76.71,76.671,0.47781952]
[1771937035155,0.04436095,76.709,76.671,0.47781952]
[1771937036964,5.23383863,76.7,76.673,0.49719029]
[1771937038647,0.04436095,76.705,76.673,0.49719029]
[1771937039469,0.04436095,76.699,76.675,0.49719029]
[1771937040564,5.23383863,76.71,76.681,0.49719029]
[1771937041141,5.23383863,76.72,76.681,0.49719029]
[1771937041554,13.03460392,76.719,76.683,0.49719029]
[1771937042169,0.04436095,76.718,76.683,0.49719029]
[1771937042549,13.03460392,76.719,76.683,0.49719029]
[1771937043263,13.03460392,76.719,76.691,0.49719029]
[1771937043462,13.07896487,76.719,76.691,0.49719029]
[1771937043645,0.04436095,76.718,76.691,0.49719029]
[1771937045860,0.04436095,76.718,76.693,0.49719029]
[1771937047059,103.9,76.737,76.692,13.03916966]
[1771937047060,5.23383863,76.73,76.701,0.49719029]
[1771937047262,5.27819958,76.73,76.701,0.49719029]
[1771937047569,0.04436095,76.729,76.701,0.49719029]
[1771937049878,5.23383863,76.71,76.688,0.49719029]
[1771937050058,0.04436095,76.709,76.688,0.49719029]
[1771937050376,5.23383863,76.71,76.688,0.49719029]
[1771937050958,5.27819958,76.72,76.691,0.49719029]
[1771937051877,18.26829994,76.72,76.692,13.03916966]
[1771937052072,13.03446131,76.72,76.693,0.49719029]
[1771937052379,32.5822049,76.729,76.701,0.49719029]
[1771937052380,13.03288196,76.729,76.701,0.49719029]
[1771937052982,13.07623818,76.735,76.701,0.49719029]
[1771937053381,0.04436095,76.734,76.701,0.49719029]
[1771937054076,0.04436095,76.734,76.702,13.03746968]
[1771937054262,0.04436095,76.734,76.703,0.49719029]
[1771937056879,0.04436095,76.734,76.705,0.49719029]
[1771937058861,13.03118362,76.739,76.707,0.49719029]
[1771937059265,13.03118362,76.739,76.711,0.49719029]
[1771937059459,0.04436095,76.745,76.711,0.49719029]
[1771937059878,13.02985686,76.747,76.711,0.49719029]
[1771937062180,13.02985686,76.747,76.721,0.49719029]
[1771937063184,13.02985686,76.747,76.723,0.49719029]
[1771937066477,13.02985686,76.747,76.724,13.03373129]
[1771937066678,13.02985686,76.747,76.725,0.48098917]
[1771937066878,13.07421781,76.747,76.725,0.48098917]
[1771937067098,0.04436095,76.746,76.725,0.48098917]
[1771937069304,0.04436095,76.759,76.731,0.48098917]
[1771937069604,0.487793,76.749,76.711,45.62579029]
[1771937071490,0.487793,76.749,76.712,0.48098917]
[1771937071795,0.487793,76.759,76.731,0.48098917]
[1771937072103,0.487793,76.749,76.721,0.48098917]
[1771937073588,0.487793,76.749,76.722,13.03407106]
[1771937073787,0.487793,76.749,76.723,0.48098917]
[1771937075998,0.487793,76.749,76.725,0.48098917]
[1771937076394,13.02831491,76.756,76.731,0.48098917]
[1771937076598,13.51610791,76.756,76.731,0.48098917]
[1771937076899,0.487793,76.755,76.731,0.48098917]
[1771937077301,13.02863694,76.754,76.731,0.48098917]
[1771937078604,13.02805374,76.758,76.733,0.48098917]
[1771937078899,0.687793,76.76,76.733,0.48098917]
[1771937079201,0.687793,76.76,76.741,0.48098917]
[1771937079202,0.2,76.76,76.741,0.48098917]
[1771937079496,0.2,76.76,76.743,0.48098917]
[1771937081002,0.2,76.76,76.745,0.48098917]
[1771937085794,0.2,76.76,76.736,0.48098917]
[1771937085795,0.487793,76.758,76.736,0.48098917]
[1771937087005,0.487793,76.758,76.735,13.03171769]
[1771937087198,0.487793,76.758,76.735,13.51270686]
[1771937087388,0.487793,76.758,76.736,0.48098917]
[1771937090101,0.487793,76.758,76.737,13.03152325]
[1771937090401,0.487793,76.758,76.737,13.51251242]
[1771937091503,0.487793,76.758,76.737,13.03152325]
[1771937091912,0.487793,76.758,76.738,0.48098917]
[1771937092404,0.487793,76.758,76.74,0.48098917]
[1771937095197,0.45586894,76.756,76.735,0.49230451]
[1771937097415,0.45586894,76.756,76.729,0.49230451]
[1771937097724,0.45586894,76.749,76.724,0.49230451]
[1771937098611,0.45586894,76.749,76.726,0.49230451]
[1771937100221,0.45586894,76.747,76.726,0.49230451]
[1771937100624,0.45586894,76.745,76.722,13.03407044]
[1771937100820,0.45586894,76.745,76.721,0.49230451]
[1771937101019,0.45586894,76.739,76.712,13.0357391]
[1771937101323,0.45586894,76.729,76.707,13.03661986]
[1771937101712,0.45586894,76.735,76.708,0.49230451]
[1771937101910,0.45586894,76.745,76.711,0.49230451]
[1771937105107,13.03033461,76.744,76.712,13.03577015]
[1771937105319,0.45586894,76.743,76.713,0.49230451]
[1771937107118,32.57498762,76.746,76.713,0.49230451]
[1771937107119,0.45586894,76.741,76.713,0.49230451]
[1771937108313,0.45586894,76.739,76.714,13.03543029]
[1771937108529,0.45586894,76.739,76.715,0.49230451]
[1771937110214,0.45586894,76.737,76.715,0.49230451]
[1771937111730,0.45586894,76.737,76.707,0.49230451]
[1771937113122,0.45586894,76.729,76.709,0.49230451]
[1771937116715,0.45586894,76.729,76.71,13.03611002]
[1771937117031,0.45586894,76.729,76.71,13.52841453]
[1771937117331,0.45586894,76.729,76.71,13.03611002]
[1771937117520,0.45586894,76.729,76.711,0.49230451]
[1771937120336,0.45586894,76.729,76.713,0.49230451]
[1771937126841,0.45586894,76.729,76.715,0.48487663]
[1771937133553,13.03305181,76.728,76.707,0.48487663]
[1771937133733,0.46507794,76.719,76.689,0.48487663]
[1771937133928,5.68830253,76.71,76.689,0.48487663]
[1771937134545,0.46507794,76.719,76.689,0.48487663]
[1771937134950,0.46507794,76.719,76.691,0.48487663]
[1771937137247,13.03475064,76.718,76.692,13.03916966]
[1771937137438,0.46507794,76.717,76.693,0.48487663]
[1771937142238,0.46507794,76.715,76.693,0.48487663]
[1771937144048,0.46507794,76.713,76.693,0.48487663]
[1771937144246,0.46507794,76.713,76.695,0.48487663]
[1771937145846,0.46507794,76.713,76.696,13.52336625]
[1771937146044,0.46507794,76.713,76.697,0.48487663]
[1771937150563,5.22871935,76.71,76.697,0.48487663]
[1771937151645,0.46507794,76.713,76.697,0.48487663]
[1771937151955,0.46507794,76.734,76.701,0.48487663]
[1771937152963,0.46507794,76.734,76.703,0.48487663]
[1771937154968,0.46507794,76.734,76.705,0.49980967]
[1771937155367,0.49596463,76.729,76.705,0.49980967]
[1771937156159,0.49596463,76.736,76.705,0.49980967]
[1771937156368,0.49596463,76.736,76.704,45.6299541]
[1771937156369,0.49596463,76.736,76.711,0.49980967]
[1771937157171,0.49596463,76.736,76.713,0.49980967]
[1771937157472,0.49596463,76.734,76.713,0.49980967]
[1771937159656,0.49596463,76.729,76.709,0.49980967]
[1771937160778,0.49596463,76.719,76.696,0.49980967]
[1771937161075,0.49596463,76.709,76.696,0.49980967]
[1771937161882,0.49596463,76.709,76.697,13.03831962]
[1771937166979,0.49596463,76.727,76.698,0.49980967]
[1771937167182,5.22871935,76.72,76.698,0.49980967]
[1771937167381,0.49596463,76.719,76.698,0.49980967]
[1771937170778,0.49596463,76.719,76.7,0.49980967]
[1771937171576,5.22871935,76.74,76.7,5.22871935]
[1771937171781,0.49596463,76.756,76.721,0.49980967]
[1771937171963,0.49596463,76.756,76.731,0.49980967]
[1771937172663,13.02822616,76.757,76.732,13.03237241]
[1771937172884,13.02822616,76.757,76.733,0.49980967]
[1771937173779,0.49596463,76.756,76.733,0.49980967]
[1771937174078,0.49596463,76.749,76.733,0.49980967]
[1771937174783,0.49596463,76.749,76.729,0.49980967]
[1771937175966,0.49596463,76.749,76.721,32.58560237]
[1771937176180,0.49596463,76.749,76.674,0.49980967]
[1771937176181,0.49596463,76.729,76.674,0.49980967]
[1771937176388,5.22871935,76.71,76.679,0.49980967]
[1771937176687,5.22871935,76.71,76.681,0.49980967]
[1771937176865,0.49596463,76.709,76.681,0.49980967]
[1771937178465,0.49596463,76.709,76.682,13.04087008]
[1771937178668,0.49596463,76.689,76.665,0.1125364]
[1771937178884,0.49596463,76.679,76.645,0.49980967]
[1771937179185,5.22871935,76.67,76.645,0.49980967]
[1771937179388,0.31281372,76.675,76.645,0.49980967]
[1771937179993,0.31281372,76.679,76.645,0.49980967]
[1771937181368,0.31281372,76.685,76.651,0.49980967]
[1771937181568,13.35334368,76.684,76.651,0.49980967]
[1771937181773,5.22871935,76.68,76.651,0.49980967]
[1771937182283,0.31281372,76.683,76.651,0.49980967]
[1771937182587,5.22871935,76.68,76.651,0.49980967]
[1771937184584,5.22871935,76.68,76.653,0.47010262]
[1771937187790,5.22871935,76.68,76.654,13.04563362]
[1771937187984,5.22871935,76.68,76.655,0.48339359]
[1771937188293,13.04138029,76.679,76.655,0.48339359]
[1771937188474,0.31281372,76.678,76.655,0.48339359]
[1771937190087,0.31281372,76.678,76.657,0.48339359]
[1771937190990,0.31281372,76.676,76.657,0.48339359]
[1771937193094,0.31281372,76.676,76.659,0.48339359]
[1771937193272,5.22871935,76.68,76.659,0.48339359]
[1771937193873,0.31281372,76.679,76.659,0.48339359]
[1771937195184,0.31281372,76.678,76.659,0.48339359]
[1771937200673,0.31281372,76.676,76.659,0.48339359]
[1771937201895,0.31281372,76.676,76.654,0.48339359]
[1771937203879,0.31281372,76.676,76.656,0.48339359]
[1771937205293,0.31281372,76.676,76.658,0.48339359]
[1771937206795,13.04068709,76.684,76.658,0.48339359]
[1771937206995,0.31281372,76.683,76.658,0.48339359]
[1771937208208,0.31281372,76.683,76.657,13.04512308]
[1771937208209,0.31281372,76.709,76.661,0.48339359]
[1771937208384,0.31281372,76.708,76.681,0.48339359]
[1771937208806,13.03561905,76.713,76.691,0.48339359]
[1771937209787,0.31281372,76.717,76.691,0.48339359]
[1771937210812,0.31281372,76.717,76.684,0.48339359]
[1771937210985,0.31281372,76.699,76.679,0.48339359]
[1771937213099,0.31281372,76.697,76.679,0.48339359]
[1771937214106,0.31281372,76.697,76.679,13.52464835]
[1771937214504,0.31281372,76.697,76.68,0.48339359]
[1771937214700,0.31281372,76.702,76.68,0.48339359]
[1771937217589,13.03763966,76.701,76.68,0.48339359]
[1771937217901,0.31281372,76.7,76.68,0.48339359]
[1771937218800,0.31281372,76.704,76.682,0.47899931]
[1771937220007,13.03709915,76.705,76.681,0.47899931]
[1771937220193,0.31281372,76.704,76.681,0.47899931]
[1771937221005,13.03729971,76.703,76.681,0.47899931]
[1771937221203,0.31281372,76.702,76.681,0.47899931]
[1771937221809,0.31281372,76.699,76.669,0.47899931]
[1771937222106,0.31281372,76.699,76.671,0.47899931]
[1771937222309,13.03729971,76.703,76.671,0.47899931]
[1771937222509,13.03729971,76.703,76.681,0.47899931]
[1771937222891,13.03492055,76.717,76.691,0.47899931]
[1771937224982,32.58445269,76.724,76.691,0.47899931]
[1771937224983,0.31281372,76.719,76.691,0.47899931]
[1771937225186,32.89726641,76.724,76.692,13.03916966]
[1771937225389,0.31281372,76.723,76.701,0.47899931]
[1771937228606,0.31281372,76.721,76.701,0.47899931]
[1771937229892,0.31281372,76.721,76.702,0.47899931]
[1771937230094,3.69383402,76.74,76.701,13.03754443]
[1771937230095,0.31281372,76.738,76.711,0.47899931]
[1771937230700,13.34229944,76.749,76.721,0.47899931]
[1771937230913,0.31281372,76.748,76.721,0.47899931]
[1771937231797,5.43433299,76.76,76.716,0.47899931]
[1771937231798,13.02874064,76.754,76.716,0.47899931]
[1771937232099,0.31281372,76.749,76.716,0.47899931]
[1771937232693,0.31281372,76.747,76.721,0.47899931]
[1771937235206,0.31281372,76.745,76.721,0.47899931]
[1771937237418,13.03033461,76.744,76.722,0.47899931]
[1771937238123,0.31281372,76.743,76.722,0.47899931]
[1771937239616,0.31281372,76.741,76.722,0.47899931]
[1771937242607,0.31281372,76.739,76.71,5.7133323]
[1771937243203,0.31281372,76.739,76.711,0.47899931]
[1771937245128,45.60854834,76.74,76.711,0.47899931]
[1771937245129,0.31281372,76.737,76.711,0.47899931]
[1771937246121,0.31281372,76.735,76.711,0.47899931]
[1771937246423,0.31281372,76.735,76.712,0.47700491]
[1771937246923,13.03169307,76.736,76.721,0.47700491]
[1771937248313,13.02982527,76.747,76.722,0.47700491]
[1771937248810,13.02928983,76.751,76.731,0.47700491]
[1771937249005,13.02928983,76.751,76.741,0.47700491]
[1771937249323,0.2,76.76,76.741,0.47700491]
[1771937249531,0.2,76.76,76.751,0.47700491]
[1771937249822,13.33873012,76.771,76.751,0.47700491]
[1771937250213,0.31281372,76.773,76.751,0.47700491]
[1771937252206,13.33831662,76.773,76.751,0.47700491]
[1771937252921,0.31281372,76.772,76.751,0.47700491]
[1771937254707,13.02575191,76.771,76.751,0.47700491]
[1771937257218,0.31281372,76.771,76.751,0.47700491]
[1771937259518,13.02592158,76.77,76.751,0.47700491]
[1771937260325,0.31281372,76.769,76.746,0.47700491]
[1771937261529,13.02626094,76.768,76.746,0.47700491]
[1771937261712,0.31281372,76.767,76.746,0.47700491]
[1771937263025,0.31281372,76.765,76.741,0.47700491]
[1771937263330,0.31281372,76.759,76.731,0.47700491]
[1771937263825,0.31281372,76.749,76.726,0.47700491]
[1771937265124,0.31281372,76.747,76.726,0.47700491]
[1771937265326,13.02965549,76.748,76.715,13.03511558]
[1771937265327,0.31281372,76.739,76.715,0.47700491]
[1771937265528,0.31281372,76.739,76.71,0.47700491]
[1771937266732,0.31281372,76.739,76.711,0.47700491]
[1771937270030,0.31281372,76.737,76.711,0.47700491]
[1771937271120,0.31281372,76.737,76.712,0.47700491]
[1771937271419,8.91557971,76.76,76.721,0.47700491]
[1771937271420,0.31281372,76.749,76.721,0.47700491]
[1771937272233,0.31281372,76.747,76.721,0.47700491]
[1771937274341,32.57123896,76.755,76.731,0.47700491]
[1771937275439,32.88405268,76.755,76.731,0.47700491]
[1771937275639,0.31281372,76.754,76.731,0.47700491]
[1771937276821,0.31281372,76.752,76.731,0.47700491]
[1771937278538,13.0291462,76.751,76.731,0.47700491]
[1771937281431,32.56803028,76.763,76.733,0.47056404]
[1771937281630,0.31281372,76.762,76.733,0.47056404]
[1771937282641,0.31281372,76.761,76.735,0.47056404]
[1771937283350,0.31281372,76.759,76.735,0.47056404]
[1771937284431,5.53455941,76.75,76.73,0.47056404]
[1771937284633,0.31281372,76.749,76.73,0.47056404]
[1771937285946,0.31281372,76.748,76.718,13.50514926]
[1771937286171,0.31281372,76.739,76.719,0.47056404]
[1771937287148,0.31281372,76.739,76.718,13.0347386]
[1771937287443,0.31281372,76.737,76.718,13.0347386]
[1771937288737,5.22174569,76.76,76.708,0.47056404]
[1771937288738,0.31281372,76.728,76.708,0.47056404]
[1771937290440,13.03300554,76.729,76.691,0.47056404]
[1771937290441,0.31281372,76.719,76.691,0.47056404]
[1771937291552,0.31281372,76.719,76.692,0.47056404]
[1771937291750,5.22174569,76.72,76.692,0.47056404]
[1771937291948,13.03439254,76.721,76.692,0.47056404]
[1771937292860,0.31281372,76.721,76.694,0.47056404]
[1771937293958,18.56897025,76.72,76.696,0.47056404]
[1771937295554,0.31281372,76.719,76.696,0.47056404]
[1771937296641,0.31281372,76.709,76.691,0.47056404]
[1771937296944,5.22174569,76.71,76.691,0.47056404]
[1771937296945,0.31281372,76.714,76.691,0.47056404]
[1771937297254,5.22174569,76.71,76.691,0.47056404]
[1771937298460,5.53455941,76.71,76.691,0.47056404]
[1771937298868,18.57070314,76.71,76.691,0.47056404]
[1771937299250,0.31281372,76.709,76.678,0.47056404]
[1771937299449,0.31281372,76.709,76.679,0.47056404]
[1771937300859,0.31281372,76.709,76.674,13.04209479]
[1771937300860,0.31281372,76.699,76.675,0.47056404]
[1771937301051,5.22174569,76.7,76.675,0.47056404]
[1771937301052,0.31281372,76.697,76.675,0.47056404]
[1771937301368,0.31281372,76.697,76.677,0.47056404]
[1771937303065,5.22174569,76.7,76.679,0.47056404]
[1771937303768,18.25970415,76.7,76.679,0.47056404]
[1771937304261,18.57251787,76.7,76.679,0.47056404]
[1771937305184,0.31281372,76.699,76.679,0.47056404]
[1771937308255,13.03814962,76.698,76.679,0.47056404]
[1771937309272,0.31281372,76.689,76.674,0.48414611]
[1771937310272,0.31281372,76.689,76.642,103.5]
[1771937310273,0.31281372,76.679,76.66,0.48414611]
[1771937312854,13.04138029,76.679,76.66,0.48414611]
[1771937314368,13.04138029,76.679,76.623,3.69383402]
[1771937314369,0.31281372,76.678,76.624,3.69383402]
[1771937314556,5.22174569,76.64,76.6,5.32174569]
[1771937315061,5.22174569,76.64,76.602,13.05448943]
[1771937315466,18.76911965,76.64,76.602,13.05448943]
[1771937315667,0.49928736,76.639,76.602,13.05448943]
[1771937316067,18.26983229,76.64,76.6,5.32174569]
[1771937316068,0.49928736,76.629,76.6,0.1]
[1771937316260,0.49928736,76.619,76.6,0.1]
[1771937317858,0.49928736,76.617,76.6,0.1]
[1771937318977,13.05176329,76.618,76.602,0.48414611]
[1771937319158,13.55105065,76.618,76.602,0.48414611]
[1771937319357,0.49928736,76.623,76.602,0.48414611]
[1771937319681,0.49928736,76.628,76.602,0.48414611]
[1771937320559,13.05040064,76.626,76.602,0.48414611]
[1771937321671,0.49928736,76.616,76.6,0.1]
[1771937322072,0.49928736,76.622,76.602,0.48414611]
[1771937322584,5.22174569,76.63,76.603,0.48414611]
[1771937322764,13.04818695,76.639,76.605,0.48414611]
[1771937323178,0.49928736,76.638,76.605,0.48414611]
[1771937323376,5.24068729,76.63,76.605,0.48414611]
[1771937323766,0.49928736,76.638,76.605,0.48414611]
[1771937324763,0.49928736,76.636,76.605,0.48414611]
[1771937325062,13.04852747,76.637,76.605,0.48414611]
[1771937325063,5.24068729,76.63,76.605,13.53801449]
[1771937325259,5.24068729,76.63,76.606,0.48414611]
[1771937325777,0.49928736,76.634,76.606,0.48414611]
[1771937327084,0.49928736,76.629,76.6,0.58414611]
[1771937327272,13.04837746,76.638,76.603,0.48414611]
[1771937328068,0.49928736,76.646,76.611,0.48414611]
[1771937328282,13.0471655,76.645,76.611,0.48414611]
[1771937328487,13.54645286,76.645,76.611,0.48414611]
[1771937328786,0.49928736,76.644,76.611,0.48414611]
[1771937328991,5.24068729,76.64,76.611,0.48414611]
[1771937329491,0.49928736,76.639,76.612,0.48414611]
[1771937329692,5.24068729,76.64,76.612,0.48414611]
[1771937329875,0.49928736,76.655,76.621,0.48414611]
[1771937330084,0.49928736,76.667,76.631,0.48414611]
[1771937330397,0.49928736,76.667,76.641,0.48414611]
[1771937330889,0.49928736,76.679,76.651,0.48414611]
[1771937331690,0.49928736,76.679,76.653,0.48414611]
[1771937331990,13.04155037,76.678,76.653,0.48414611]
[1771937332495,0.49928736,76.677,76.653,0.48414611]
[1771937335290,13.04189055,76.676,76.653,0.48414611]
[1771937335881,0.49005208,76.675,76.647,0.45955839]
[1771937339495,0.49005208,76.669,76.63,5.24068729]
[1771937340304,0.49005208,76.669,76.64,5.24068729]
[1771937340596,0.49005208,76.673,76.64,5.24068729]